bitfinex/quotes_ETHUSD_20251006
["timestamp","ask_amount","ask_price","bid_price","bid_amount"]
[1759769533773,1.23,4671.2,4670.2,4.54123592]
[1759769533976,0.1072,4670.6,4670.3,22.619307]
[1759769534249,0.1072,4670.6,4670.5,4.54109838]
[1759769534467,1.23,4671.2,4671.1,2.14082336]
[1759769534684,1.3372,4671.2,4671.1,4.59322336]
[1759769536057,1.3372,4671.2,4671.1,6.99322336]
[1759769536356,1.23,4671.2,4671.1,6.99322336]
[1759769536768,1.23,4671.2,4671.1,18.79705836]
[1759769536967,1.23,4671.2,4671.1,9.45844636]
[1759769537295,2.46,4671.2,4671.1,9.45844636]
[1759769537694,2.46,4671.2,4671.1,12.14276336]
[1759769537893,2.46,4671.2,4671.1,10.74176336]
[1759769538562,3.69,4671.2,4671.1,10.74176336]
[1759769538762,3.69,4671.2,4671.1,15.87977636]
[1759769539795,3.69,4671.2,4671.1,15.70065636]
[1759769539983,4.92,4671.2,4671.1,10.40984636]
[1759769540186,4.92,4671.2,4671.1,9.75446436]
[1759769540779,4.92,4671.2,4671.1,13.15628936]
[1759769541498,6.15,4671.2,4671.1,11.87421136]
[1759769541898,6.15,4671.2,4671.1,12.70837736]
[1759769542869,1e-08,4671.2,4671.1,20.32305236]
[1759769543072,1e-08,4671.2,4671.1,37.10042336]
[1759769544273,1e-08,4671.2,4671.1,30.68669636]
[1759769544505,1.23000001,4671.2,4671.1,12.80933436]
[1759769544669,1.23000001,4671.2,4671.1,11.65483436]
[1759769544868,1.23000001,4671.2,4671.1,9.40364536]
[1759769545783,1.23000001,4671.2,4670.3,0.64217345]
[1759769545998,0.1072,4671.0,4670.9,2.14091502]
[1759769546198,0.1072,4671.0,4670.9,4.56091502]
[1759769546502,0.1072,4671.0,4670.9,6.96091502]
[1759769546694,0.1072,4671.0,4670.9,2.4]
[1759769546889,0.1072,4671.0,4670.9,4.819]
[1759769547293,1.3372,4671.0,4670.9,4.819]
[1759769548308,1.3372,4671.0,4670.9,6.95991502]
[1759769548803,2.5672,4671.0,4670.9,6.95991502]
[1759769549987,3.7972,4671.0,4670.9,6.95991502]
[1759769550379,3.7972,4671.0,4670.9,4.819]
[1759769550574,4.2271,4671.0,4670.9,4.819]
[1759769551147,4.2271,4671.0,4670.9,6.95991502]
[1759769551148,3.7972,4671.0,4670.9,6.95991502]
[1759769551276,5.0272,4671.0,4670.9,6.95991502]
[1759769552790,6.2572,4671.0,4670.9,6.95991502]
[1759769554309,7.4872,4671.0,4670.9,6.95991502]
[1759769554676,7.4872,4671.0,4670.9,15.47539302]
[1759769554998,7.38,4671.0,4670.9,26.88150802]
[1759769555202,7.38,4671.0,4670.9,18.06989502]
[1759769555510,7.38,4671.0,4670.9,13.94765702]
[1759769555708,8.61,4671.0,4670.9,10.51614002]
[1759769556008,8.61,4671.0,4670.9,6.95991502]
[1759769556210,8.61,4671.0,4670.9,9.61202602]
[1759769556604,8.61,4671.0,4670.9,9.75062602]
[1759769556812,8.61,4671.0,4670.9,19.80586602]
[1759769556988,9.84,4671.0,4670.9,19.80586502]
[1759769557919,9.84,4671.0,4670.9,27.52842502]
[1759769558110,9.84,4671.0,4670.9,27.36795202]
[1759769558311,9.84,4671.0,4670.9,11.92877102]
[1759769558624,11.07,4671.0,4670.9,14.23957102]
[1759769558922,11.07,4671.0,4670.9,14.28236102]
[1759769559126,11.07,4671.0,4670.9,13.15436102]
[1759769559324,11.07,4671.0,4670.9,7.483016]
[1759769559618,11.632,4671.0,4670.9,4.818]
[1759769559789,12.862,4671.0,4670.9,6.95891502]
[1759769560220,12.4072,4671.0,4670.9,6.95891502]
[1759769561114,13.6372,4671.0,4670.9,6.95891502]
[1759769562490,15.322,4671.0,4670.9,6.95891502]
[1759769562690,14.8672,4671.0,4670.9,6.95891502]
[1759769563307,15.322,4671.0,4670.9,6.95891502]
[1759769563902,16.0972,4671.0,4670.9,6.95891502]
[1759769565642,17.3272,4671.0,4670.9,6.95891502]
[1759769566922,18.5572,4671.0,4670.9,6.95891502]
[1759769567418,18.5572,4671.0,4670.9,20.20259802]
[1759769567419,18.45,4671.0,4670.9,20.20259802]
[1759769567636,18.45,4671.0,4670.9,21.80121784]
[1759769567939,18.45,4671.0,4670.9,20.65819984]
[1759769568141,18.45,4671.0,4670.9,20.62679984]
[1759769568343,19.68,4671.0,4670.9,23.75066884]
[1759769568638,19.68,4671.0,4670.9,20.85006784]
[1759769568844,19.68,4671.0,4670.9,20.00155884]
[1759769569207,19.68,4671.0,4670.9,8.48806484]
[1759769569409,19.68,4671.0,4670.9,23.23262884]
[1759769569643,20.91,4671.0,4670.9,13.39366984]
[1759769569824,20.91,4671.0,4670.9,10.12062702]
[1759769570432,20.91,4671.0,4670.9,15.51127384]
[1759769571143,22.14,4671.0,4670.9,15.51127384]
[1759769571536,22.14,4671.0,4670.9,27.11817584]
[1759769572042,11.88458581,4671.0,4670.9,25.72762602]
[1759769572250,11.88458581,4671.0,4670.9,25.69622602]
[1759769572551,13.11458581,4671.0,4670.9,37.06711502]
[1759769573677,13.11458581,4671.0,4670.9,37.09851502]
[1759769573968,14.34458581,4671.0,4670.9,35.08141302]
[1759769574526,14.34458581,4671.0,4670.9,37.09851502]
[1759769575258,2.46200001,4671.2,4671.1,2.14082336]
[1759769575430,2.46200001,4671.2,4671.1,36.95882336]
[1759769575631,2.46200001,4671.2,4671.1,38.87088975]
[1759769575831,2.46200001,4671.2,4671.1,36.18866875]
[1759769576457,2.46200001,4671.2,4671.1,37.81039375]
[1759769576658,3.69200001,4671.2,4671.1,36.33650275]
[1759769576865,3.69200001,4671.2,4671.1,35.89987875]
[1759769577234,3.69200001,4671.2,4671.1,32.38771536]
[1759769577434,3.69200001,4671.2,4671.1,6.95882336]
[1759769577619,3.69200001,4671.2,4671.1,35.97152836]
[1759769578024,4.92200001,4671.2,4671.1,33.73062736]
[1759769578224,4.92200001,4671.2,4671.1,33.19962736]
[1759769578432,4.92200001,4671.2,4671.1,6.95882336]
[1759769578637,4.92200001,4671.2,4671.1,33.16785936]
[1759769579663,4.92200001,4671.2,4671.1,33.15933736]
[1759769579872,4.92200001,4671.2,4671.1,29.57441636]
[1759769579873,6.15200001,4671.2,4671.1,29.57441636]
[1759769580070,6.15200001,4671.2,4671.1,19.65050636]
[1759769580476,6.15200001,4671.2,4671.1,19.68190636]
[1759769580679,6.15200001,4671.2,4671.1,30.23765736]
[1759769581245,7.38200001,4671.2,4671.1,30.23765736]
[1759769581660,7.38200001,4671.2,4671.1,36.98518736]
[1759769582177,1e-08,4671.2,4671.1,37.61878736]
[1759769582546,1e-08,4671.2,4671.1,37.62382336]
[1759769582547,1.23000001,4671.2,4671.1,37.62382336]
[1759769583374,0.002,4671.7,4671.6,2.14059422]
[1759769583538,0.002,4671.7,4671.6,17.58486314]
[1759769583732,0.002,4671.7,4671.6,17.69206314]
[1759769584045,1.232,4671.7,4671.6,16.15816022]
[1759769584369,1.232,4671.7,4671.6,17.69148888]
[1759769584564,1.232,4671.7,4671.6,8.59912288]
[1759769584970,1.232,4671.7,4671.6,18.56986088]
[1759769585665,2.462,4671.7,4671.6,18.71230288]
[1759769586869,2.462,4671.7,4671.6,17.01696488]
[1759769587068,3.692,4671.7,4671.6,17.01696488]
[1759769587901,3.692,4671.7,4671.6,27.49273088]
[1759769588461,3.692,4671.7,4671.6,27.27612088]
[1759769588660,4.922,4671.7,4671.6,27.31595288]
[1759769588855,5.3863,4671.7,4671.6,19.04871488]
[1759769589090,5.3863,4671.7,4671.6,17.43968022]
[1759769589275,5.3863,4671.7,4671.6,18.68195022]
[1759769589476,4.922,4671.7,4671.6,18.68695022]
[1759769589990,6.152,4671.7,4671.6,28.91407922]
[1759769590188,4.922,4672.2,4671.8,0.6336]
[1759769590391,4.922,4672.2,4672.1,0.1072]
[1759769590690,4.922,4672.2,4672.1,34.69879]
[1759769590892,4.922,4672.2,4672.1,34.9252]
[1759769591196,4.922,4672.2,4672.1,37.06556514]
[1759769591489,6.152,4672.2,4672.1,37.06556514]
[1759769591704,0.002,4672.7,4672.1,37.06556514]
[1759769591705,0.002,4672.7,4672.1,35.03297004]
[1759769591862,9.16590794,4673.2,4672.7,30.0]
[1759769592067,9.16590794,4673.2,4673.1,2.13990712]
[1759769592280,9.16590794,4673.2,4673.1,37.87302105]
[1759769592482,5.46242245,4673.2,4673.1,37.49087535]
[1759769592681,1.23000001,4673.2,4673.1,37.88554197]
[1759769592886,0.4643,4674.3,4673.4,2.13974743]
[1759769593093,0.4643,4674.3,4673.6,2.4]
[1759769593411,0.4643,4674.3,4673.6,34.53967819]
[1759769594173,2.462,4673.7,4673.6,34.53967819]
[1759769595266,1e-08,4673.9,4673.7,0.6336]
[1759769595466,1e-08,4673.9,4673.8,40.06930056]
[1759769595674,0.01,4674.9,4674.1,2.1394493]
[1759769595862,0.01,4674.9,4674.1,7.21156323]
[1759769596061,0.4643,4674.8,4674.1,37.21156323]
[1759769596261,0.4643,4674.8,4674.1,38.73332179]
[1759769596474,0.01,4674.9,4674.1,37.21156323]
[1759769596682,10.3043,4674.6,4674.1,37.21156323]
[1759769597200,1.232,4674.2,4674.1,37.21156323]
[1759769597703,1e-08,4674.2,4674.1,37.84516323]
[1759769597886,9.84,4674.6,4674.3,2.77295776]
[1759769598092,9.84,4674.6,4674.5,0.6336]
[1759769598303,9.84,4674.6,4674.5,27.69380623]
[1759769598526,11.07,4674.6,4674.5,27.69380623]
[1759769599396,11.07,4674.6,4674.5,29.45902923]
[1759769599601,1e-08,4674.9,4674.7,0.6336]
[1759769599796,1e-08,4674.9,4674.8,37.84384287]
[1759769599999,1e-08,4674.9,4674.8,38.12669717]
[1759769601307,1.23000001,4674.9,4674.8,38.12669717]
[1759769601707,7.382,4675.6,4675.5,2.13880868]
[1759769602002,7.382,4675.6,4675.5,34.02753991]
[1759769602208,7.382,4675.6,4675.5,35.77817691]
[1759769602434,7.382,4675.6,4675.5,21.57440768]
[1759769602820,8.612,4675.6,4675.5,19.35140768]
[1759769603223,8.612,4675.6,4675.5,35.60089668]
[1759769603536,8.612,4675.6,4675.5,36.13086491]
[1759769604033,8.612,4675.6,4675.5,36.09946491]
[1759769604240,9.842,4675.6,4675.5,37.95072261]
[1759769604435,9.842,4675.6,4675.5,22.31553861]
[1759769604738,9.842,4675.6,4675.5,24.49142468]
[1759769605307,9.842,4675.6,4675.5,37.70260868]
[1759769605737,11.5363,4675.6,4675.5,15.55302468]
[1759769605946,11.5363,4675.6,4675.5,17.97602468]
[1759769606103,11.5363,4675.6,4675.5,7.043366]
[1759769606308,11.5363,4675.6,4675.5,16.58980568]
[1759769606523,11.5363,4675.6,4675.5,14.93635368]
[1759769607109,12.7663,4675.6,4675.5,14.93635368]
[1759769607348,12.7663,4675.6,4675.5,17.261787]
[1759769607548,12.7663,4675.6,4675.5,9.258633]
[1759769607751,12.7663,4675.6,4675.5,8.99744168]
[1759769607961,12.7663,4675.6,4674.5,2.56867229]
[1759769608120,12.7663,4675.6,4675.0,2.13899683]
[1759769608121,13.15523616,4675.6,4675.0,2.13899683]
[1759769608447,0.4643,4675.5,4675.1,8.93575021]
[1759769608752,0.4643,4675.4,4675.3,2.15]
[1759769608906,0.4643,4675.4,4675.3,15.45340117]
[1759769609104,0.4643,4675.4,4675.3,15.47027917]
[1759769609313,0.4643,4675.4,4675.3,6.07369]
[1759769609520,0.4643,4675.4,4675.3,5.471667]
[1759769610139,1.6943,4675.4,4675.3,5.471667]
[1759769611264,1.6943,4675.4,4675.3,7.871667]
[1759769611473,2.9243,4675.4,4675.3,7.871667]
[1759769613054,4.1543,4675.4,4675.3,7.871667]
[1759769613642,4.1543,4675.4,4675.3,5.449667]
[1759769613847,4.1543,4675.4,4675.3,7.871667]
[1759769614059,4.1543,4675.4,4675.3,7.654722]
[1759769614360,6.00845362,4675.4,4675.3,4.822]
[1759769614661,7.23845362,4675.4,4675.3,4.822]
[1759769615849,5.3843,4675.4,4675.3,17.45743517]
[1759769616133,5.3843,4675.4,4675.3,17.6594561]
[1759769616134,6.15,4675.4,4675.3,17.6594561]
[1759769616954,6.15,4675.4,4675.3,19.6886261]
[1759769617267,6.15,4675.4,4675.3,19.44151217]
[1759769617483,7.38,4675.4,4675.3,19.44151217]
[1759769617689,7.38,4675.4,4675.3,18.30004117]
[1759769617891,7.38,4675.4,4675.3,18.40724117]
[1759769618079,7.38,4675.4,4675.3,20.83392717]
[1759769618485,7.8185,4675.4,4675.3,18.01036217]
[1759769618793,8.61,4675.4,4675.3,18.01036217]
[1759769619091,8.61,4675.4,4675.3,21.96494217]
[1759769619792,9.0485,4675.4,4675.3,11.44152717]
[1759769620090,9.0485,4675.4,4675.3,12.05275517]
[1759769620276,9.0485,4675.4,4675.3,10.60227117]
[1759769620277,10.2785,4675.4,4675.3,10.60227117]
[1759769620590,10.2785,4675.4,4675.3,6.85589917]
[1759769620887,10.2785,4675.4,4675.3,9.27689917]
[1759769620888,9.84,4675.4,4675.3,9.27689917]
[1759769621123,10.2785,4675.4,4675.3,11.20993917]
[1759769621791,11.5085,4675.4,4675.3,11.20993917]
[1759769621991,11.5085,4675.4,4675.3,6.56710017]
[1759769622172,11.5085,4675.4,4675.3,9.61730717]
[1759769623001,11.5085,4675.4,4675.3,6.45990017]
[1759769623292,12.7385,4675.4,4675.3,8.90801617]
[1759769623666,12.7385,4675.4,4675.3,4.321]
[1759769623873,12.8457,4675.4,4675.3,4.321]
[1759769624285,12.8457,4675.4,4675.3,6.45990017]
[1759769624466,14.0757,4675.4,4675.3,6.45890017]
[1759769624666,13.6372,4675.4,4675.3,6.45890017]
[1759769624917,14.0757,4675.4,4675.3,6.45890017]
[1759769625787,14.0757,4675.4,4675.3,9.00846317]
[1759769625979,14.8672,4675.4,4675.3,12.60468417]
[1759769626180,15.3057,4675.4,4675.3,12.60468417]
[1759769626375,15.3057,4675.4,4675.3,9.33372417]
[1759769626581,15.3057,4675.4,4675.3,4.32]
[1759769627211,15.3057,4675.4,4675.3,6.45890017]
[1759769627510,16.0972,4675.4,4675.3,6.45890017]
[1759769627716,16.5357,4675.4,4675.3,6.45890017]
[1759769628794,17.7657,4675.4,4675.3,6.45890017]
[1759769629511,17.3272,4675.4,4675.3,6.45890017]
[1759769630412,18.9957,4675.4,4675.3,6.45890017]
[1759769630803,18.9957,4675.4,4675.3,4.32]
[1759769631127,20.50968417,4675.4,4675.3,4.32]
[1759769631812,21.73968417,4675.4,4675.3,4.32]
[1759769632513,20.2257,4675.4,4675.3,4.319]
[1759769633244,20.2257,4675.4,4675.1,0.001]
[1759769633245,21.4557,4675.4,4675.1,0.001]
[1759769633417,21.4557,4675.4,4675.2,2.419]
[1759769633418,23.59459105,4675.4,4675.2,2.419]
[1759769633614,2.57740017,4675.3,4675.2,2.419]
[1759769633808,2.13894592,4675.2,4675.1,0.001]
[1759769634155,2.13894592,4675.2,4675.1,2.42]
[1759769634649,3.80744592,4675.2,4675.1,2.42]
[1759769634853,1.6685,4675.2,4675.1,2.42]
[1759769635714,3.80744592,4675.2,4675.1,2.42]
[1759769635914,7.17426654,4675.2,4675.1,2.42]
[1759769636460,5.03532062,4675.2,4675.1,2.42]
[1759769636745,7.17426654,4675.2,4675.1,2.42]
[1759769636961,5.03532062,4675.2,4675.1,2.42]
[1759769637413,6.26532062,4675.2,4675.1,2.42]
[1759769638310,5.93402062,4675.2,4675.1,2.42]
[1759769638549,3.7972,4675.2,4675.1,2.42]
[1759769638752,5.0272,4675.2,4675.1,2.42]
[1759769639649,5.4657,4675.2,4675.1,0.001]
[1759769639855,5.4657,4675.2,4675.1,2.42]
[1759769640230,6.6957,4675.2,4675.1,2.42]
[1759769640414,8.83252062,4675.2,4675.1,2.42]
[1759769641045,8.39402062,4675.2,4675.1,2.42]
[1759769641253,8.83252062,4675.2,4675.1,2.42]
[1759769641554,10.06252062,4675.2,4675.1,2.42]
[1759769643141,11.29252062,4675.2,4675.1,2.42]
[1759769644422,12.52252062,4675.2,4675.1,2.42]
[1759769645971,13.75252062,4675.2,4675.1,2.42]
[1759769647141,13.31402062,4675.2,4675.1,2.42]
[1759769647465,12.4072,4675.2,4675.1,2.42]
[1759769647668,12.8449,4675.2,4675.1,2.42]
[1759769648738,13.6372,4675.2,4675.1,2.42]
[1759769649072,14.0749,4675.2,4675.1,2.42]
[1759769649835,13.6372,4675.2,4675.1,2.42]
[1759769650037,14.8672,4675.2,4675.1,2.42]
[1759769651543,16.0972,4675.2,4675.1,2.42]
[1759769652459,16.0972,4675.2,4675.1,6.95899167]
[1759769652660,15.99,4675.2,4675.1,7.09759167]
[1759769652846,15.99,4675.2,4675.1,29.4877066]
[1759769652847,17.22,4675.2,4675.1,29.4877066]
[1759769653639,17.22,4675.2,4675.1,37.3447056]
[1759769654339,18.45,4675.2,4675.1,37.3447056]
[1759769654533,18.45,4675.2,4675.1,12.77167167]
[1759769654735,18.45,4675.2,4675.1,14.95410667]
[1759769654967,18.45,4675.2,4675.1,13.43550467]
[1759769655177,18.45,4675.2,4675.1,13.12321567]
[1759769655750,19.68,4675.2,4675.1,19.45788267]
[1759769655957,19.68,4675.2,4675.1,17.50208167]
[1759769656472,19.68,4675.2,4675.1,16.80085567]
[1759769656643,19.68,4675.2,4675.1,16.50217667]
[1759769657265,20.91,4675.2,4675.1,16.50217667]
[1759769657638,20.91,4675.2,4675.1,7.06619167]
[1759769657975,20.91,4675.2,4675.1,7.09759167]
[1759769658177,20.91,4675.2,4675.1,21.61732467]
[1759769658379,20.91,4675.2,4675.1,24.63482467]
[1759769658574,22.14,4675.2,4675.1,24.63482467]
[1759769658775,22.14,4675.2,4675.1,24.67854567]
[1759769658948,22.14,4675.2,4675.1,22.72868567]
[1759769659275,22.14,4675.2,4675.1,20.67941267]
[1759769659855,22.14,4675.2,4675.1,21.75438567]
[1759769660061,23.37,4675.2,4675.1,21.75438567]
[1759769660969,23.37,4675.2,4675.1,22.52553867]
[1759769661172,23.37,4675.2,4675.1,15.21341667]
[1759769661364,24.6,4675.2,4675.1,15.21341667]
[1759769661865,24.6,4675.2,4675.1,23.38975667]
[1759769662074,24.6,4675.2,4675.1,24.98265767]
[1759769662262,24.6,4675.2,4675.1,25.01405767]
[1759769662462,24.6,4675.2,4675.1,23.79415767]
[1759769662986,25.83,4675.2,4675.1,25.01509367]
[1759769663189,25.83,4675.2,4675.1,24.98369367]
[1759769663485,25.83,4675.2,4675.1,25.5136619]
[1759769663986,25.83,4675.2,4675.1,37.5961599]
[1759769664187,27.06,4675.2,4675.1,29.5667366]
[1759769664687,27.06,4675.2,4675.1,29.5981366]
[1759769664898,27.06,4675.2,4675.1,34.3545726]
[1759769665050,27.06,4675.2,4675.1,25.05823867]
[1759769665589,28.29,4675.2,4675.1,25.05823867]
[1759769665755,28.29,4675.2,4675.1,33.66832867]
[1759769666988,29.52,4675.2,4675.1,39.28519167]
[1759769667188,29.52,4675.2,4675.1,23.47241867]
[1759769667385,29.52,4675.2,4675.1,19.04335467]
[1759769667562,29.52,4675.2,4675.1,21.45935467]
[1759769667954,29.52,4675.2,4675.1,21.78687367]
[1759769668355,30.75,4675.2,4675.1,21.78687367]
[1759769668984,30.75,4675.2,4675.1,24.20445367]
[1759769669381,30.75,4675.2,4675.1,23.34140267]
[1759769669892,31.98,4675.2,4675.1,28.04847467]
[1759769671005,31.98,4675.2,4675.1,29.49747767]
[1759769671207,33.21,4675.2,4675.1,29.49747767]
[1759769671374,33.21,4675.2,4675.1,28.36809267]
[1759769671575,33.21,4675.2,4675.1,28.09752067]
[1759769671874,33.21,4675.2,4675.1,25.16580867]
[1759769672442,33.21,4675.2,4675.1,24.93694767]
[1759769672578,34.44,4675.2,4675.1,24.36439467]
[1759769672777,34.44,4675.2,4675.1,21.26775867]
[1759769673009,34.44,4675.2,4675.1,19.98969267]
[1759769673195,34.8944,4675.2,4675.1,13.93863167]
[1759769673401,34.44,4675.2,4675.1,13.93863167]
[1759769674095,35.67,4675.2,4675.1,23.44222567]
[1759769674297,35.67,4675.2,4675.1,22.02472567]
[1759769675002,35.67,4675.2,4675.1,26.89136067]
[1759769675489,36.9,4675.2,4675.1,26.89136067]
[1759769676011,36.9,4675.2,4675.1,37.06219167]
[1759769676304,36.9,4675.2,4675.1,19.69458767]
[1759769676875,38.13,4675.2,4675.1,19.69458767]
[1759769677181,38.13,4675.2,4675.1,24.03485167]
[1759769677495,38.5961,4675.2,4675.1,16.45833867]
[1759769678126,38.5961,4675.2,4675.1,20.71653067]
[1759769678323,39.8261,4675.2,4675.1,20.71653067]
[1759769678623,39.36,4675.2,4675.1,20.71653067]
[1759769679192,39.36,4675.2,4675.1,31.24968367]
[1759769679621,40.59,4675.2,4675.1,27.57644867]
[1759769679826,40.59,4675.2,4675.1,25.91380667]
[1759769680026,40.59,4675.2,4675.1,23.01678667]
[1759769680235,40.59,4675.2,4675.1,22.80695967]
[1759769681122,41.82,4675.2,4675.1,23.95407767]
[1759769681428,41.82,4675.2,4675.1,25.86614406]
[1759769681999,38.93591309,4675.2,4675.1,25.86614406]
[1759769682230,38.93591309,4675.2,4675.1,37.06219167]
[1759769682538,40.16591309,4675.2,4675.1,37.06219167]
[1759769683229,40.16591309,4675.2,4675.1,37.34504597]
[1759769683449,40.16591309,4675.2,4675.1,37.5921599]
[1759769683736,40.16591309,4675.2,4675.1,38.23368107]
[1759769683902,41.39591309,4675.2,4675.1,38.23368107]
[1759769684725,41.39591309,4675.2,4675.1,37.95082677]
[1759769685100,41.39591309,4675.2,4675.1,37.06219167]
[1759769685370,43.09201309,4675.2,4675.1,16.43744867]
[1759769685731,43.09201309,4675.2,4675.1,14.5657638]
[1759769685925,43.09201309,4675.2,4675.1,12.65472667]
[1759769686425,42.62591309,4675.2,4675.1,22.78307367]
[1759769686653,44.32201309,4675.2,4675.1,20.12670667]
[1759769686857,43.85591309,4675.2,4675.1,19.75170667]
[1759769687159,44.32201309,4675.2,4675.1,19.75170667]
[1759769687334,44.32201309,4675.2,4675.1,21.55170667]
[1759769688057,45.08591309,4675.2,4675.1,21.55170667]
[1759769688362,45.08591309,4675.2,4675.1,23.53140867]
[1759769688922,45.08591309,4675.2,4675.1,16.13069367]
[1759769689125,45.55201309,4675.2,4675.1,17.69712067]
[1759769689367,45.55201309,4675.2,4675.1,7.06219167]
[1759769689656,46.31591309,4675.2,4675.1,7.06219167]
[1759769691266,46.31591309,4675.2,4675.1,22.03951367]
[1759769691441,47.54591309,4675.2,4675.1,22.03951367]
[1759769692157,47.54591309,4675.2,4675.1,21.67745567]
[1759769692363,47.54591309,4675.2,4675.1,20.75366167]
[1759769692574,48.01201309,4675.2,4675.1,19.25434967]
[1759769692774,49.24201309,4675.2,4675.1,19.25434967]
[1759769693358,49.24201309,4675.2,4675.1,19.46583667]
[1759769693971,49.24201309,4675.2,4675.1,18.91683667]
[1759769696171,51.70201309,4675.2,4675.1,18.00085267]
[1759769696482,51.23591309,4675.2,4675.1,22.16585267]
[1759769696981,51.23591309,4675.2,4675.1,20.81435067]
[1759769697193,52.46591309,4675.2,4675.1,17.29549367]
[1759769697498,52.46591309,4675.2,4675.1,24.64212367]
[1759769698254,52.46591309,4675.2,4675.1,20.96482467]
[1759769698585,53.69591309,4675.2,4675.1,23.56465467]
[1759769699450,53.69591309,4675.2,4675.1,28.67170967]
[1759769700201,53.69591309,4675.2,4675.1,26.70785067]
[1759769700418,54.92591309,4675.2,4675.1,26.86817267]
[1759769700567,54.92591309,4675.2,4675.1,28.7792098]
[1759769700767,54.92591309,4675.2,4675.1,26.86817267]
[1759769701371,54.92591309,4675.2,4675.1,37.06219167]
[1759769701782,56.15591309,4675.2,4675.1,37.06219167]
[1759769703313,29.52,4675.2,4675.1,44.06219167]
[1759769703466,5.49998807,4675.4,4675.3,5.17250017]
[1759769703672,5.49998807,4675.4,4675.3,38.1174684]
[1759769703894,2.61628045,4675.4,4675.3,38.1174684]
[1759769704101,1e-08,4675.4,4675.3,45.1174684]
[1759769704305,1e-08,4675.4,4675.3,47.5469258]
[1759769704482,1e-08,4675.4,4675.3,47.79403973]
[1759769705105,1e-08,4675.4,4675.3,45.1174684]
[1759769707205,1e-08,4675.4,4675.3,45.0860684]
[1759769707406,1.23000001,4675.4,4675.3,45.0860684]
[1759769708831,2.46000001,4675.4,4675.3,45.0860684]
[1759769709045,2.46000001,4675.4,4675.3,25.0645184]
[1759769709324,2.46000001,4675.4,4675.3,22.17381921]
[1759769709325,2.92780001,4675.4,4675.3,22.17381921]
[1759769709524,2.92780001,4675.4,4675.3,24.58781921]
[1759769709737,2.92780001,4675.4,4675.3,42.00458721]
[1759769710428,2.92980001,4675.4,4675.3,41.27285821]
[1759769710594,2.92980001,4675.4,4675.3,40.71144321]
[1759769710595,4.15980001,4675.4,4675.3,40.71144321]
[1759769710790,3.69200001,4675.4,4675.3,40.71144321]
[1759769711531,3.69200001,4675.4,4675.3,40.95855714]
[1759769711730,3.69200001,4675.4,4675.3,44.84148314]
[1759769711927,13.532,4675.6,4675.5,2.77240868]
[1759769712228,13.532,4675.6,4675.5,45.08497691]
[1759769712630,13.532,4675.6,4675.5,38.08497691]
[1759769712948,1e-08,4675.9,4675.8,2.77227145]
[1759769713098,0.002,4676.1,4676.0,2.98597998]
[1759769713298,0.002,4676.1,4676.0,37.80097998]
[1759769713539,0.002,4676.1,4676.0,38.07949391]
[1759769713721,0.002,4676.1,4676.0,38.16500062]
[1759769714400,0.002,4676.1,4676.0,38.38505492]
[1759769714599,0.002,4676.1,4676.0,38.17125492]
[1759769714814,1.232,4676.1,4676.0,38.38505492]
[1759769715119,1.232,4676.1,4676.0,39.89468669]
[1759769715451,1.232,4676.1,4676.0,41.79943161]
[1759769715652,1.232,4676.1,4676.0,40.14180062]
[1759769716121,2.462,4676.1,4676.0,40.14180062]
[1759769716724,2.462,4676.1,4676.0,40.35560062]
[1759769717138,2.462,4676.1,4676.0,40.14180062]
[1759769717528,3.692,4676.1,4676.0,40.14180062]
[1759769718279,3.692,4676.1,4676.0,40.35560062]
[1759769719143,4.922,4676.1,4676.0,40.35560062]
[1759769719360,4.922,4676.1,4676.0,40.71425492]
[1759769720458,0.002,4676.3,4676.0,38.57567494]
[1759769720646,0.002,4676.6,4676.5,2.13835133]
[1759769720845,0.002,4676.6,4676.5,39.58891956]
[1759769721155,0.002,4676.6,4676.5,42.55171956]
[1759769721352,0.002,4676.6,4676.5,11.08865733]
[1759769721353,0.4698,4676.6,4676.5,11.08865733]
[1759769721532,0.4698,4676.6,4676.5,13.76965733]
[1759769721734,1.6998,4676.6,4676.5,11.35365733]
[1759769721964,1.6998,4676.6,4676.5,1.925]
[1759769722257,2.21238881,4676.6,4676.0,0.08550671]
[1759769722825,2.21238881,4676.6,4676.1,2.661771]
[1759769723031,0.4678,4676.5,4676.1,2.661771]
[1759769723226,0.4678,4676.4,4676.1,2.661771]
[1759769723529,0.4678,4676.3,4676.2,2.417]
[1759769723729,0.4678,4676.3,4676.2,6.487709]
[1759769723951,0.4678,4676.3,4676.2,9.887709]
[1759769724257,0.4678,4676.3,4676.2,7.699517]
[1759769724444,1.6978,4676.3,4676.2,7.699517]
[1759769724758,3.83462062,4676.3,4676.2,7.699517]
[1759769725454,3.83462062,4676.3,4676.2,34.32357151]
[1759769725455,1.6978,4676.3,4676.2,34.32357151]
[1759769725654,1.6978,4676.3,4676.2,35.78051551]
[1759769725834,2.46,4676.3,4676.2,35.31021044]
[1759769726422,2.46,4676.3,4676.2,37.20260244]
[1759769727360,3.69,4676.3,4676.2,37.20260244]
[1759769727958,3.69,4676.3,4676.2,22.41503751]
[1759769728133,4.1578,4676.3,4676.2,20.47156451]
[1759769728334,3.69,4676.3,4676.2,20.47156451]
[1759769728544,3.69,4676.3,4676.2,32.83409351]
[1759769728744,4.92,4676.3,4676.2,32.83409351]
[1759769728943,5.3878,4676.3,4676.2,32.83409351]
[1759769729143,5.3878,4676.3,4676.2,23.55148251]
[1759769729553,5.3878,4676.3,4676.2,27.86603551]
[1759769729862,4.92,4676.3,4676.2,27.86603551]
[1759769730061,6.15,4676.3,4676.2,27.86603551]
[1759769730268,6.15,4676.3,4676.2,25.32587351]
[1759769730564,6.15,4676.3,4676.2,36.95548851]
[1759769731266,6.6178,4676.3,4676.2,36.95548851]
[1759769731569,7.8478,4676.3,4676.2,37.06268851]
[1759769732066,7.38,4676.3,4676.2,37.06268851]